fUST/lending_fUST_20250614
["ID","MTS","AMOUNT","RATE_DAILY","PERIOD"]
[365687091,1749830431890,200.0,0.00024028,120]
[365687092,1749830476821,151.0,0.00017939,2]
[365687093,1749830477074,151.0,0.00017939,2]
[365687094,1749830480177,151.0,0.00017939,2]
[365687650,1749830514596,181.753084,0.00013699,2]
[365688110,1749830540512,2673.0,0.00024976,60]
[365688115,1749830540709,151.0,0.00017939,2]
[365688150,1749830542649,500.0,0.00023,120]
[365688165,1749830543434,500.0,0.00023,120]
[365688179,1749830544222,500.0,0.00023,120]
[365688191,1749830544994,500.0,0.00023,120]
[365688205,1749830545770,500.0,0.00023,120]
[365688222,1749830546601,500.0,0.00023,120]
[365688236,1749830547316,500.0,0.00023,120]
[365688251,1749830548115,500.0,0.00023,120]
[365688277,1749830549504,500.0,0.00023,120]
[365688290,1749830550310,500.0,0.00023,120]
[365688308,1749830551200,500.0,0.00023,120]
[365688312,1749830551353,200.0,0.00024564,120]
[365688325,1749830552070,500.0,0.00023,120]
[365688341,1749830552907,500.0,0.00023,120]
[365688356,1749830553710,500.0,0.00023,120]
[365688372,1749830554512,500.0,0.00023,120]
[365688384,1749830555318,500.0,0.00023,120]
[365688402,1749830556207,500.0,0.00023,120]
[365688417,1749830556980,500.0,0.00023,120]
[365688431,1749830557760,500.0,0.00023,120]
[365688447,1749830558529,500.0,0.00023,120]
[365688464,1749830559418,500.0,0.00023,120]
[365688478,1749830560090,500.0,0.00023,120]
[365688489,1749830560883,500.0,0.00023,120]
[365688504,1749830561666,500.0,0.00023,120]
[365688519,1749830562451,500.0,0.00023,120]
[365688534,1749830563217,500.0,0.00023,120]
[365688549,1749830564004,500.0,0.00023,120]
[365688564,1749830564783,500.0,0.00023,120]
[365688581,1749830565698,500.0,0.00023,120]
[365688593,1749830566482,500.0,0.00023,120]
[365688606,1749830567136,1599.86611,0.00024976,60]
[365688609,1749830567265,500.0,0.00023,120]
[365688623,1749830568059,500.0,0.00023,120]
[365688638,1749830568828,500.0,0.00023,120]
[365688653,1749830569600,500.0,0.00023,120]
[365688669,1749830570378,500.0,0.00023,120]
[365688686,1749830571248,500.0,0.00023,120]
[365688699,1749830572029,500.0,0.00023,120]
[365688714,1749830572824,500.0,0.00023,120]
[365688729,1749830573637,500.0,0.00023,120]
[365688745,1749830574420,500.0,0.00023,120]
[365688760,1749830575200,500.0,0.00023,120]
[365688775,1749830575984,500.0,0.00023,120]
[365688790,1749830576762,500.0,0.00023,120]
[365688801,1749830577548,500.0,0.00023,120]
[365688815,1749830578319,500.0,0.00023,120]
[365688830,1749830579101,500.0,0.00023,120]
[365688844,1749830579875,500.0,0.00023,120]
[365688859,1749830580663,500.0,0.00023,120]
[365688875,1749830581484,500.0,0.00023,120]
[365688890,1749830582263,500.0,0.00023,120]
[365688901,1749830583032,500.0,0.00023,120]
[365688915,1749830583820,500.0,0.00023,120]
[365688931,1749830584747,500.0,0.00023,120]
[365688946,1749830585521,500.0,0.00023,120]
[365688960,1749830586298,500.0,0.00023,120]
[365688975,1749830587077,500.0,0.00023,120]
[365688989,1749830587854,500.0,0.00023,120]
[365689001,1749830588662,500.0,0.00023,120]
[365689016,1749830589427,500.0,0.00023,120]
[365689031,1749830590202,500.0,0.00023,120]
[365689046,1749830590974,500.0,0.00023,120]
[365689062,1749830591765,435.23,0.00023,120]
[365689401,1749830611884,150.5,0.0002328,120]
[365689408,1749830612214,150.5,0.0002328,120]
[365689412,1749830612374,150.5,0.0002327,120]
[365689421,1749830612830,269.93,0.0002326,120]
[365689429,1749830613241,269.99,0.0002327,120]
[365690181,1749830657945,500.0,0.00023,120]
[365690196,1749830658736,500.0,0.00023,120]
[365690210,1749830659518,500.0,0.00023,120]
[365690225,1749830660295,500.0,0.00023,120]
[365690240,1749830661086,500.0,0.00023,120]
[365690255,1749830662039,500.0,0.00023,120]
[365690266,1749830662645,500.0,0.00023,120]
[365690281,1749830663419,500.0,0.00023,120]
[365690295,1749830664186,500.0,0.00023,120]
[365690309,1749830664960,500.0,0.00023,120]
[365690321,1749830665731,500.0,0.00023,120]
[365690335,1749830666607,500.0,0.00023,120]
[365690350,1749830667544,500.0,0.00023,120]
[365690825,1749830697043,1000.0,0.00024657,120]
[365690983,1749830707102,790.0,0.00024657,120]
[365691839,1749830778528,151.0,0.00017939,2]
[365691904,1749830791306,200.0,0.00024161,120]
[365691905,1749830791603,152.254,0.00024976,60]
[365691934,1749830821997,2341.64,0.00024976,60]
[365692018,1749830839476,3369.6,0.0001799,2]
[365692317,1749830973230,2000.0,0.00019828,120]
[365692540,1749831027892,164.224603,0.000201,80]
[365692542,1749831028095,164.224603,0.000201,119]
[365692715,1749831039130,-279.00293122,0.000192,2]
[365692717,1749831039140,-180.09725252,0.00019397,2]
[365692719,1749831039149,-500.0,0.00019397,2]
[365692721,1749831039159,-298.02072158,0.00019397,2]
[365692723,1749831039168,-250.0,0.00019899,2]
[365692725,1749831039178,-168.245644,0.00020048,2]
[365692727,1749831039188,-164.224603,0.000201,2]
[365692729,1749831039197,-101.52069333,0.000201,41]
[365692757,1749831039455,-62.70390967,0.000201,41]
[365692759,1749831039465,-500.0,0.00020964,2]
[365692761,1749831039475,-300.0,0.00021072,2]
[365692763,1749831039484,-300.0,0.00021072,2]
[365692766,1749831039494,-6255.30643935,0.00021072,2]
[365692768,1749831039507,-2353.01711638,0.00021072,2]
[365692771,1749831039534,-30300.90264435,0.00021072,2]
[365692773,1749831039543,-460.48953065,0.00021073,2]
[365692775,1749831039554,-500.0,0.00021073,2]
[365692778,1749831039564,-501.82835657,0.00021073,2]
[365692780,1749831039575,-500.0,0.00021073,2]
[365692782,1749831039584,-502.66042553,0.00021073,2]
[365692783,1749831039594,-500.0,0.00021073,2]
[365692785,1749831039604,-16000.0,0.00021082,2]
[365692787,1749831039613,-1436.61665037,0.00021082,2]
[365692789,1749831039623,-309.24,0.00021085,10]
[365692792,1749831039634,-500.0,0.00021094,2]
[365692793,1749831039643,-160.0,0.00021094,2]
[365692796,1749831039653,-460.0,0.00021095,4]
[365692798,1749831039663,-460.0,0.00021095,4]
[365692800,1749831039674,-460.0,0.00021095,4]
[365692802,1749831039684,-460.0,0.00021095,4]
[365692803,1749831039694,-460.0,0.00021095,4]
[365692805,1749831039703,-460.0,0.00021095,4]
[365692808,1749831039713,-460.0,0.00021095,4]
[365692809,1749831039723,-460.0,0.00021095,4]
[365692812,1749831039733,-460.0,0.00021095,4]
[365692814,1749831039743,-460.0,0.00021095,4]
[365692816,1749831039752,-460.0,0.00021095,4]
[365692818,1749831039762,-440.0,0.00021095,4]
[365692820,1749831039771,-460.0,0.00021095,4]
[365692822,1749831039781,-325.29708729,0.00021095,4]
[365692823,1749831039791,-460.0,0.00021095,4]
[365692826,1749831039801,-360.0,0.00021095,4]
[365692828,1749831039811,-460.0,0.00021095,4]
[365692830,1749831039821,-430.0,0.00021095,4]
[365692832,1749831039831,-460.0,0.00021095,4]
[365692834,1749831039841,-460.0,0.00021095,4]
[365692836,1749831039850,-440.0,0.00021095,4]
[365692837,1749831039859,-330.0,0.00021095,4]
[365692840,1749831039870,-360.0,0.00021095,4]
[365692842,1749831039880,-440.04488353,0.00021095,4]
[365692844,1749831039889,-460.0,0.00021095,4]
[365692846,1749831039899,-226.44097479,0.00021095,4]
[365692848,1749831039908,-460.0,0.00021095,4]
[365692850,1749831039917,-460.0,0.00021095,4]
[365692852,1749831039927,-460.0,0.00021095,4]
[365692853,1749831039937,-370.0,0.00021095,4]
[365692855,1749831039946,-460.0,0.00021095,4]
[365692857,1749831039955,-460.0,0.00021095,4]
[365692859,1749831039964,-350.0,0.00021095,4]
[365692861,1749831039974,-460.0,0.00021095,4]
[365692863,1749831039984,-460.0,0.00021095,4]
[365692865,1749831039993,-460.0,0.00021095,4]
[365692867,1749831040002,-460.0,0.00021095,4]
[365692869,1749831040012,-523.28514025,0.00021095,4]
[365692871,1749831040022,-440.0,0.00021095,4]
[365692873,1749831040031,-460.0,0.00021095,4]
[365692875,1749831040040,-390.0,0.00021095,4]
[365692877,1749831040049,-460.0,0.00021095,4]
[365692879,1749831040059,-811.74,0.00021095,4]
[365692881,1749831040069,-460.0,0.00021095,4]
[365692883,1749831040078,-380.0,0.00021095,4]
[365692884,1749831040087,-740.79,0.00021095,4]
[365692886,1749831040096,-460.0,0.00021095,4]
[365692888,1749831040106,-460.0,0.00021095,4]
[365692890,1749831040116,-440.0,0.00021095,4]
[365692892,1749831040126,-460.0,0.00021095,4]
[365692894,1749831040135,-460.0,0.00021095,4]
[365692897,1749831040146,-460.0,0.00021095,4]
[365692898,1749831040155,-460.0,0.00021095,4]
[365692900,1749831040164,-500.0,0.00021095,4]
[365692903,1749831040174,-460.0,0.00021095,4]
[365692905,1749831040184,-460.0,0.00021095,4]
[365692907,1749831040194,-460.0,0.00021095,4]
[365692909,1749831040204,-187.57,0.00021095,4]
[365692911,1749831040213,-548.69,0.00021095,4]
[365692912,1749831040223,-460.0,0.00021095,4]
[365692914,1749831040233,-460.0,0.00021095,4]
[365692915,1749831040242,-460.0,0.00021095,4]
[365692916,1749831040252,-2857.02,0.00021095,4]
[365692917,1749831040261,-460.0,0.00021095,4]
[365692918,1749831040271,-430.0,0.00021095,4]
[365692919,1749831040281,-460.0,0.00021095,4]
[365692920,1749831040290,-460.0,0.00021095,4]
[365692921,1749831040299,-188.0,0.00021095,4]
[365692922,1749831040309,-460.0,0.00021095,4]
[365692923,1749831040320,-460.0,0.00021095,4]
[365692924,1749831040330,-460.0,0.00021095,4]
[365692925,1749831040340,-1004.95,0.00021095,4]
[365692926,1749831040349,-460.0,0.00021095,4]
[365692927,1749831040360,-677.93,0.00021095,4]
[365692928,1749831040370,-460.0,0.00021095,4]
[365692929,1749831040380,-460.0,0.00021095,4]
[365692930,1749831040390,-460.0,0.00021095,4]
[365692931,1749831040400,-460.0,0.00021095,4]
[365692932,1749831040409,-460.0,0.00021095,4]
[365692933,1749831040419,-460.0,0.00021095,4]
[365692934,1749831040428,-460.0,0.00021095,4]
[365692935,1749831040437,-460.0,0.00021095,4]
[365692936,1749831040446,-460.0,0.00021095,4]
[365692938,1749831040456,-460.0,0.00021095,4]
[365692940,1749831040466,-240.0,0.00021095,4]
[365692941,1749831040475,-460.0,0.00021095,4]
[365692943,1749831040485,-2609.8,0.00021095,4]
[365692945,1749831040494,-2006.77,0.00021095,4]
[365692947,1749831040504,-460.0,0.00021095,4]
[365692949,1749831040516,-460.0,0.00021095,2]
[365692951,1749831040526,-460.0,0.00021095,4]
[365692953,1749831040536,-460.0,0.00021095,4]
[365692955,1749831040546,-460.0,0.00021095,4]
[365692957,1749831040555,-460.0,0.00021095,4]
[365692959,1749831040564,-460.0,0.00021095,4]
[365692961,1749831040574,-460.0,0.00021095,4]
[365692963,1749831040584,-460.0,0.00021095,4]
[365692965,1749831040593,-460.0,0.00021095,4]
[365692967,1749831040602,-460.0,0.00021095,4]
[365692969,1749831040612,-460.0,0.00021095,4]
[365692971,1749831040621,-1975.31,0.00021095,4]
[365692972,1749831040630,-368.08,0.00021095,4]
[365692974,1749831040640,-460.0,0.00021095,4]
[365692976,1749831040649,-1145.18,0.00021095,4]
[365692978,1749831040659,-460.0,0.00021095,4]
[365692980,1749831040668,-460.0,0.00021095,4]
[365692982,1749831040678,-460.0,0.00021095,4]
[365692984,1749831040687,-460.0,0.00021095,4]
[365692986,1749831040696,-3557.37,0.00021095,4]
[365692988,1749831040706,-460.0,0.00021095,4]
[365692990,1749831040715,-2401.15,0.00021095,4]
[365692993,1749831040725,-460.0,0.00021095,4]
[365692995,1749831040735,-593.79,0.00021095,4]
[365692997,1749831040745,-1883.83,0.00021095,4]
[365692999,1749831040755,-553.11,0.00021095,4]
[365693001,1749831040764,-460.0,0.00021095,4]
[365693003,1749831040774,-460.0,0.00021095,4]
[365693005,1749831040784,-460.0,0.00021095,4]
[365693007,1749831040793,-460.0,0.00021095,4]
[365693008,1749831040803,-460.0,0.00021095,4]
[365693010,1749831040813,-460.0,0.00021095,4]
[365693012,1749831040825,-939.18,0.00021095,4]
[365693014,1749831040835,-460.0,0.00021095,4]
[365693017,1749831040845,-460.0,0.00021095,4]
[365693019,1749831040854,-460.0,0.00021095,4]
[365693021,1749831040864,-1731.29,0.00021095,4]
[365693022,1749831040873,-460.0,0.00021095,4]
[365693024,1749831040883,-460.0,0.00021095,4]
[365693026,1749831040893,-1180.37,0.00021095,4]
[365693028,1749831040902,-587.00213095,0.00021095,4]
[365693030,1749831040912,-1313.17,0.00021095,4]
[365693033,1749831040924,-2458.69,0.00021095,4]
[365693034,1749831040933,-460.0,0.00021095,4]
[365693037,1749831040943,-365.2062734,0.00021123,2]
[365693038,1749831040952,-365.2062734,0.00021123,2]
[365693040,1749831040962,-922.46341067,0.00021269,2]
[365693043,1749831040972,-1706.53,0.00021359,3]
[365693045,1749831040982,-853.26,0.00021359,3]
[365693047,1749831040992,-426.63,0.00021359,3]
[365693049,1749831041001,-213.32,0.00021359,3]
[365693051,1749831041010,-639.98,0.00021359,3]
[365693053,1749831041020,-500.0,0.00021368,2]
[365693054,1749831041029,-500.0,0.00021368,2]
[365693056,1749831041038,-365.18902665,0.00021368,2]
[365693059,1749831041048,-500.0,0.00021368,2]
[365693061,1749831041057,-433.73939414,0.00021368,2]
[365693062,1749831041068,-500.0,0.00021368,2]
[365693064,1749831041078,-304.62745888,0.00021369,4]
[365693066,1749831041087,-300.0,0.00021369,4]
[365693068,1749831041097,-204.16,0.00021369,4]
[365693069,1749831041107,-460.0,0.00021369,4]
[365693070,1749831041117,-460.0,0.00021369,4]
[365693071,1749831041127,-460.0,0.00021369,4]
[365693072,1749831041136,-460.0,0.00021369,4]
[365693073,1749831041147,-440.0,0.00021369,4]
[365693074,1749831041156,-460.0,0.00021369,4]
[365693075,1749831041166,-460.0,0.00021369,4]
[365693076,1749831041175,-460.0,0.00021369,4]
[365693077,1749831041184,-300.0,0.00021369,4]
[365693078,1749831041194,-460.0,0.00021369,4]
[365693079,1749831041203,-460.0,0.00021369,4]
[365693080,1749831041212,-460.0,0.00021369,4]
[365693081,1749831041222,-460.0,0.00021369,4]
[365693083,1749831041231,-460.0,0.00021369,4]
[365693084,1749831041241,-460.0,0.00021369,4]
[365693086,1749831041251,-460.0,0.00021369,4]
[365693088,1749831041260,-460.0,0.00021369,4]
[365693090,1749831041269,-811.74,0.00021369,4]
[365693092,1749831041279,-740.79,0.00021369,4]
[365693093,1749831041289,-460.0,0.00021369,4]
[365693095,1749831041298,-460.0,0.00021369,4]
[365693096,1749831041308,-460.0,0.00021369,4]
[365693097,1749831041318,-460.0,0.00021369,4]
[365693098,1749831041328,-460.0,0.00021369,4]
[365693099,1749831041339,-460.0,0.00021369,4]
[365693100,1749831041348,-500.0,0.00021369,4]
[365693101,1749831041358,-460.0,0.00021369,4]
[365693103,1749831041367,-460.0,0.00021369,4]
[365693104,1749831041377,-548.69,0.00021369,4]
[365693105,1749831041389,-460.0,0.00021369,4]
[365693106,1749831041400,-460.0,0.00021369,4]
[365693107,1749831041411,-460.0,0.00021369,4]
[365693108,1749831041420,-2857.02,0.00021369,4]
[365693109,1749831041429,-460.0,0.00021369,4]
[365693111,1749831041439,-460.0,0.00021369,4]
[365693112,1749831041450,-596.17564883,0.00021369,4]
[365693113,1749831041460,-460.0,0.00021369,4]
[365693114,1749831041469,-460.0,0.00021369,4]
[365693115,1749831041478,-460.0,0.00021369,4]
[365693116,1749831041489,-1004.95,0.00021369,4]
[365693117,1749831041498,-460.0,0.00021369,4]
[365693118,1749831041508,-677.93,0.00021369,4]
[365693120,1749831041521,-460.0,0.00021369,4]
[365693121,1749831041532,-460.0,0.00021369,4]
[365693122,1749831041542,-460.0,0.00021369,4]
[365693123,1749831041551,-460.0,0.00021369,4]
[365693124,1749831041562,-460.0,0.00021369,4]
[365693125,1749831041573,-460.0,0.00021369,4]
[365693126,1749831041583,-240.0,0.00021369,4]
[365693127,1749831041593,-460.0,0.00021369,4]
[365693129,1749831041603,-460.0,0.00021369,4]
[365693131,1749831041612,-460.0,0.00021369,4]
[365693133,1749831041622,-2609.8,0.00021369,4]
[365693134,1749831041632,-2006.77,0.00021369,4]
[365693136,1749831041642,-460.0,0.00021369,4]
[365693138,1749831041651,-460.0,0.00021369,2]
[365693139,1749831041661,-460.0,0.00021369,4]
[365693140,1749831041671,-460.0,0.00021369,4]
[365693141,1749831041681,-460.0,0.00021369,4]
[365693142,1749831041690,-460.0,0.00021369,4]
[365693143,1749831041700,-460.0,0.00021369,4]
[365693144,1749831041709,-460.0,0.00021369,4]
[365693145,1749831041718,-1975.31,0.00021369,4]
[365693147,1749831041727,-1145.18,0.00021369,4]
[365693148,1749831041736,-460.0,0.00021369,4]
[365693150,1749831041746,-460.0,0.00021369,4]
[365693152,1749831041755,-460.0,0.00021369,4]
[365693156,1749831041849,-3557.37,0.00021369,4]
[365693158,1749831041875,-460.0,0.00021369,4]
[365693159,1749831041886,-2401.15,0.00021369,4]
[365693160,1749831041897,-300.0,0.00021369,4]
[365693161,1749831041912,-1883.83,0.00021369,4]
[365693162,1749831041927,-553.11,0.00021369,4]
[365693164,1749831041947,-460.0,0.00021369,4]
[365693165,1749831041956,-460.0,0.00021369,4]
[365693166,1749831041967,-460.0,0.00021369,4]
[365693167,1749831041977,-460.0,0.00021369,4]
[365693168,1749831041986,-460.0,0.00021369,4]
[365693169,1749831041996,-460.0,0.00021369,4]
[365693170,1749831042006,-939.18,0.00021369,4]
[365693171,1749831042018,-460.0,0.00021369,4]
[365693173,1749831042027,-460.0,0.00021369,4]
[365693174,1749831042037,-460.0,0.00021369,4]
[365693175,1749831042047,-1731.29,0.00021369,4]
[365693176,1749831042057,-460.0,0.00021369,4]
[365693177,1749831042069,-1180.37,0.00021369,4]
[365693178,1749831042080,-1313.17,0.00021369,4]
[365693179,1749831042090,-2458.69,0.00021369,4]
[365693181,1749831042100,-460.0,0.00021369,4]
[365693182,1749831042110,-365.2062734,0.000214,2]
[365693183,1749831042120,-442.62766673,0.00021564,2]
[365693184,1749831042130,-922.46341067,0.00021612,2]
[365693185,1749831042139,-509.04374065,0.00021621,2]
[365693186,1749831042149,-519.2447875,0.00021621,2]
[365693187,1749831042159,-500.0,0.00021621,2]
[365693189,1749831042169,-16000.0,0.0002163,2]
[365693190,1749831042179,-500.0,0.00021642,3]
[365693191,1749831042189,-460.0,0.00021643,4]
[365693192,1749831042199,-300.0,0.00021643,4]
[365693193,1749831042209,-300.0,0.00021643,4]
[365693194,1749831042219,-460.0,0.00021643,4]
[365693195,1749831042230,-160.0,0.00021643,4]
[365693196,1749831042241,-460.0,0.00021643,4]
[365693198,1749831042251,-160.0,0.00021643,4]
[365693199,1749831042261,-460.0,0.00021643,4]
[365693200,1749831042271,-460.0,0.00021643,4]
[365693201,1749831042281,-326.86981558,0.00021643,4]
[365693202,1749831042291,-300.0,0.00021643,4]
[365693203,1749831042301,-460.0,0.00021643,4]
[365693204,1749831042311,-460.0,0.00021643,4]
[365693206,1749831042322,-811.74,0.00021643,4]
[365693207,1749831042332,-740.79,0.00021643,4]
[365693208,1749831042343,-460.0,0.00021643,4]
[365693209,1749831042354,-350.0,0.00021643,4]
[365693210,1749831042364,-460.0,0.00021643,4]
[365693211,1749831042373,-460.0,0.00021643,4]
[365693212,1749831042383,-460.0,0.00021643,4]
[365693214,1749831042394,-460.0,0.00021643,4]
[365693215,1749831042404,-460.0,0.00021643,4]
[365693216,1749831042414,-548.69,0.00021643,4]
[365693217,1749831042424,-460.0,0.00021643,4]
[365693218,1749831042433,-460.0,0.00021643,4]
[365693219,1749831042444,-506.82740622,0.00021643,4]
[365693220,1749831042454,-2857.02,0.00021643,4]
[365693221,1749831042463,-460.0,0.00021643,4]
[365693223,1749831042473,-460.0,0.00021643,4]
[365693224,1749831042483,-460.0,0.00021643,4]
[365693225,1749831042492,-460.0,0.00021643,4]
[365693226,1749831042504,-460.0,0.00021643,4]
[365693227,1749831042524,-1004.95,0.00021643,4]
[365693228,1749831042545,-460.0,0.00021643,4]
[365693230,1749831042557,-677.93,0.00021643,4]
[365693231,1749831042568,-460.0,0.00021643,4]
[365693232,1749831042579,-460.0,0.00021643,4]
[365693233,1749831042590,-460.0,0.00021643,4]
[365693234,1749831042600,-460.0,0.00021643,4]
[365693235,1749831042611,-330.0,0.00021643,4]
[365693236,1749831042622,-460.0,0.00021643,4]
[365693237,1749831042632,-280.0,0.00021643,4]
[365693239,1749831042642,-460.0,0.00021643,4]
[365693240,1749831042652,-270.0,0.00021643,4]
[365693241,1749831042664,-2609.8,0.00021643,4]
[365693242,1749831042674,-2006.77,0.00021643,4]
[365693243,1749831042684,-460.0,0.00021643,4]
[365693244,1749831042694,-460.0,0.00021643,2]
[365693245,1749831042703,-460.0,0.00021643,4]
[365693246,1749831042713,-460.0,0.00021643,4]
[365693247,1749831042723,-460.0,0.00021643,4]
[365693248,1749831042732,-460.0,0.00021643,4]
[365693249,1749831042743,-460.0,0.00021643,4]
[365693250,1749831042753,-1975.31,0.00021643,4]
[365693251,1749831042763,-1145.18,0.00021643,4]
[365693252,1749831042773,-460.0,0.00021643,4]
[365693253,1749831042783,-460.0,0.00021643,4]
[365693254,1749831042806,-460.0,0.00021643,4]
[365693255,1749831042822,-3557.37,0.00021643,4]
[365693256,1749831042833,-460.0,0.00021643,4]
[365693257,1749831042842,-2401.15,0.00021643,4]
[365693258,1749831042853,-1883.83,0.00021643,4]
[365693259,1749831042863,-553.11,0.00021643,4]
[365693260,1749831042873,-460.0,0.00021643,4]
[365693261,1749831042884,-460.0,0.00021643,4]
[365693262,1749831042895,-460.0,0.00021643,4]
[365693263,1749831042906,-242.55,0.00021643,4]
[365693264,1749831042916,-460.0,0.00021643,4]
[365693265,1749831042926,-939.18,0.00021643,4]
[365693266,1749831042937,-460.0,0.00021643,4]
[365693268,1749831042947,-410.0,0.00021643,4]
[365693269,1749831042958,-460.0,0.00021643,4]
[365693270,1749831042967,-1731.29,0.00021643,4]
[365693271,1749831042977,-460.0,0.00021643,4]
[365693272,1749831042987,-1180.37,0.00021643,4]
[365693273,1749831042998,-1313.17,0.00021643,4]
[365693274,1749831043008,-2458.69,0.00021643,4]
[365693275,1749831043018,-460.0,0.00021643,4]
[365693276,1749831043028,-160.0,0.00021644,3]
[365693277,1749831043039,-183.35058372,0.00021644,2]
[365693278,1749831043049,-500.0,0.000217,2]
[365693279,1749831043059,-503.87350031,0.000217,2]
[365693280,1749831043069,-500.0,0.000217,2]
[365693281,1749831043079,-31116.89770291,0.00021717,2]
[365693282,1749831043089,-21884.07036181,0.00021717,2]
[365693283,1749831043099,-38537.0339368,0.00021717,2]
[365693284,1749831043109,-216.63087839,0.00021765,2]
[365693285,1749831043119,-151.0,0.00021765,2]
[365693286,1749831043129,-151.0,0.00021765,2]
[365693287,1749831043140,-151.0,0.00021765,2]
[365693288,1749831043150,-151.0,0.00021765,2]
[365693289,1749831043160,-151.0,0.00021765,2]
[365693290,1749831043170,-1688.0,0.00021765,2]
[365693291,1749831043180,-151.0,0.00021765,2]
[365693292,1749831043190,-270.98328894,0.00021765,2]
[365693294,1749831043200,-5000.0,0.00021765,2]
[365693295,1749831043210,-3204.87589479,0.00021765,2]
[365693296,1749831043220,-500.0,0.00021765,2]
[365693297,1749831043230,-500.0,0.00021765,2]
[365693298,1749831043240,-500.0,0.00021765,2]
[365693299,1749831043250,-500.0,0.00021765,2]
[365693300,1749831043260,-500.0,0.00021765,2]
[365693301,1749831043270,-500.0,0.00021765,2]
[365693303,1749831043279,-500.0,0.00021765,2]
[365693304,1749831043289,-207.4,0.00021765,2]
[365693305,1749831043299,-500.0,0.00021765,2]
[365693307,1749831043309,-500.0,0.00021765,2]
[365693308,1749831043319,-500.0,0.00021765,2]
[365693310,1749831043329,-500.0,0.00021765,2]
[365693311,1749831043339,-500.0,0.00021765,2]
[365693312,1749831043349,-500.0,0.00021765,2]
[365693313,1749831043359,-500.0,0.00021765,2]
[365693314,1749831043369,-500.0,0.00021765,2]
[365693315,1749831043379,-500.0,0.00021773,2]
[365693316,1749831043389,-500.0,0.00021773,2]
[365693319,1749831043399,-500.0,0.00021773,2]
[365693320,1749831043409,-508.50880777,0.00021773,2]
[365693321,1749831043419,-500.0,0.00021778,2]
[365693322,1749831043428,-500.0,0.00021796,2]
[365693323,1749831043437,-500.0,0.00021804,2]
[365693324,1749831043447,-500.0,0.00021804,2]
[365693325,1749831043458,-503.18092134,0.00021804,2]
[365693327,1749831043469,-500.0,0.00021804,2]
[365693328,1749831043479,-507.6131257,0.00021804,2]
[365693330,1749831043488,-500.0,0.00021804,2]
[365693331,1749831043497,-500.0,0.00021804,2]
[365693332,1749831043508,-500.0,0.00021817,2]
[365693333,1749831043521,-1750.456,0.0002182,2]